Cogmind - Beta 11 @@@ ROGUE MODE // 2022.03.15 @ 02:23:28 Player: MTF Result: Destroyed by P1-3CE with P1-3CE's Gatling Flakker Performance ------------- Evolutions (1) 500 Regions Visited (6) 1200 Robots Destroyed (79) 395 Value Destroyed (1512) 1512 Prototype IDs (24) 480 Alien Tech Used (0) 0 Bonus (300) 300 TOTAL SCORE: 4387 Bonus ------- Aligned with FarCom 300 Cogmind --------- Core Integrity 0/400 Matter 270/300 Energy 99/100 System Corruption 3% Temperature Cool (0) Movement Core (50) Location -8/Mines Parts ------- > --- POWER (1) -------- (None) > --- PROPULSION (3) --- Light Treads > --- UTILITY (3) ------ Core Shielding > --- WEAPON (2) ------- (None) > --- INVENTORY (5) ---- Advanced Weapon Cycler Light Armor Plating Latent Energy Streamer Mini Grenade Launcher Longsword +1 Peak State ------------ > --- POWER ------------ Cooled Ion Engine > --- PROPULSION ------- Light Treads Light Treads Light Treads > --- UTILITY ---------- High-capacity Storage Unit Core Shielding Shield Generator > --- WEAPON ----------- Latent Energy Streamer Heavy Assault Rifle > --- INVENTORY -------- Large Matter Pod Structural Scanner Experimental Sensor Array Advanced Weapon Cycler Light Assault Rifle Light Assault Rifle Light Assault Rifle Light Assault Rifle Mini Grenade Launcher Heavy Hammer Longsword +1 [Rating: 25] Favorites ----------- Power Cooled Ion Engine Engine Cooled Ion Engine Power Core Light Nuclear Core Propulsion Light Treads Treads Light Treads Leg Aluminum Leg Utility High-capacity Storage Unit Device Shield Generator Storage High-capacity Storage Unit Protection Core Shielding Weapon Heavy Assault Rifle Energy Gun EM Pulse Gun Energy Cannon Latent Energy Streamer Ballistic Gun Heavy Assault Rifle Ballistic Cannon Improved Light Cannon Launcher Mini Grenade Launcher Impact Weapon Hammer Build | -11 -10 -10 -9 -9 -9 -8 ------- Run | Scr Mat Min Mat Min Exi Min Slots Evolved 2 | . . . 2 . . . Power . | . . . . . . . Propulsion 1 | . . . 1 . . . Utility 1 | . . . 1 . . . Weapon . | . . . . . . . Parts Attached 67 | 4 15 6 17 4 16 5 Power 6 | . 2 1 2 . 1 . Engine 5 | . 2 . 2 . 1 . Core 1 | . . 1 . . . . Reactor . | . . . . . . . Propulsion 15 | 2 1 . 5 . 6 1 Treads 15 | 2 1 . 5 . 6 1 Leg . | . . . . . . . Wheel . | . . . . . . . Hover . | . . . . . . . Flight . | . . . . . . . Utility 17 | 2 5 3 3 . 3 1 Device 12 | 2 4 3 1 . 2 . Storage 1 | . 1 . . . . . Processor . | . . . . . . . Hackware . | . . . . . . . Protection 4 | . . . 2 . 1 1 Artifact . | . . . . . . . Weapon 29 | . 7 2 7 4 6 3 Energy Gun . | . . . . . . . Energy Cannon 2 | . . . . . . 2 Ballistic Gun 12 | . . . 5 2 4 1 Ballistic Cannon 6 | . 5 1 . . . . Launcher 6 | . 1 1 . 2 2 . Special Weapon . | . . . . . . . Impact Weapon 3 | . 1 . 2 . . . Slashing Weapon . | . . . . . . . Piercing Weapon . | . . . . . . . Special Melee Weapon . | . . . . . . . Unidentified Prototypes 1 | . . . 1 . . . Corrupted Parts 1 | . . . . . . 1 System Corruption 2 | . . . . . . 2 Parts Lost 17 | . . 1 . 1 10 5 Power 1 | . . . . . 1 . Propulsion 9 | . . . . . 6 3 Utility 4 | . . 1 . . 2 1 Weapon 3 | . . . . 1 1 1 Highest Loss Streak 6 | . . 1 . 1 6 5 To Critical Strikes 8 | . . . . 1 7 . Average Slot Usage (%) 99 | . 99 100 99 100 99 96 Engine 10 | . 13 9 7 11 11 11 Core 1 | . . 4 3 . . . Treads 30 | . 28 28 33 33 32 31 Device 12 | . 14 14 14 11 10 10 Storage 12 | . 14 14 11 11 11 11 Protection 5 | . . . 7 11 11 10 Ballistic Gun 12 | . . . 19 21 21 19 Ballistic Cannon 9 | . 25 21 1 . . . Launcher 1 | . . 6 . . . . Naked Turns . | . . . . . . . Heaviest Build 64 | 13 53 54 59 57 58 64 Greatest Support 60 | 40 40 40 60 60 60 60 Greatest Overweight (x) 1 | . 1 1 . . . 1 Average Overweight (x) . | . . 1 . . . . Largest Inventory Capacity 20 | 8 20 20 20 20 20 20 Average Capacity 19 | 8 17 20 20 20 20 19 Most Carried 20 | 5 20 20 20 20 20 13 Average Carried 16 | 4 14 19 19 19 16 12 Final Capacity 20 | 8 20 20 20 20 20 5 Final Carried 20 | 4 20 19 20 20 11 5 Class Distribution -------------------- 56% | Scavenger-Mutant 43% | Mutant Dominant Class ---------------- Mutant | -10/Materials Mutant | -10/Mines Scavenger-Mutant | -9/Materials Scavenger-Mutant | -9/Mines Scavenger-Mutant | -9/Exiles Scavenger-Mutant | -8/Mines Resources | -11 -10 -10 -9 -9 -9 -8 ----------- Run | Scr Mat Min Mat Min Exi Min Matter Collected 2109 | 240 582 124 488 81 521 73 Remotely 10 | 10 . . . . . . Salvage Created 2585 | 165 572 270 1136 99 134 209 Parts 158 | 15 51 10 68 5 1 8 Haulers Intercepted 4 | . 1 . 3 . . . Recyclers Shooed 7 | 1 2 . 2 2 . . Parts Field Recycled . | . . . . . . . Retrieved Matter . | . . . . . . . Parts Self-Destructed . | . . . . . . . Prevented . | . . . . . . . Kills | -11 -10 -10 -9 -9 -9 -8 ------- Run | Scr Mat Min Mat Min Exi Min Combat Hostiles Destroyed 48 | . 14 5 17 3 5 4 Guns 23 | . . . 17 . 3 3 Cannons 16 | . 12 4 . . . . AOE 9 | . 2 1 . 3 2 1 Classes Destroyed 14 | 2 8 . 1 . 1 2 Worker 2 | . 1 . 1 . . . Builder 6 | . 5 . 1 . . . Tunneler 5 | 4 . . 1 . . . Hauler 4 | . 1 . 3 . . . Recycler 10 | 1 2 2 4 1 . . Mechanic 1 | . 1 . . . . . Operator 2 | . 2 . . . . . Watcher 5 | . 2 . 3 . . . Swarmer 16 | . 6 1 6 3 . . Grunt 20 | . 8 4 6 . . 2 Brawler 1 | . . . . . . 1 Sentry 5 | . . . 5 . . . Hunter 1 | . . . . . . 1 Assembled 4 | . . . . . 4 . Best Kill Streak 5 | 3 5 3 5 4 2 3 Combat Bots Only 4 | . 3 2 4 3 2 3 Max Kills in Single Turn 2 | 1 2 1 2 2 1 1 Gunslinging 1 | . . . 1 . . . Exploded 2 | . 2 1 . 2 1 1 Melee . | . . . . . . . Uniques/NPCs Destroyed 1 | . . . . . 1 . 8R-AWN (-9/Exiles) Combat | -11 -10 -10 -9 -9 -9 -8 -------- Run | Scr Mat Min Mat Min Exi Min Damage Taken 3113 | . 429 219 464 38 1303 660 Core 537 | . 70 53 78 . 201 135 Absorbed by Shields 836 | . 33 31 183 17 450 122 Redirected to Shielding 75 | . . . 3 . 42 30 Regen/Repaired (Parts) 52 | . 52 . . . . . Core Remaining (%) 75 | 100 . 50 . . . . Volleys Fired 222 | 14 55 13 58 6 65 11 Largest 2 | 2 2 2 2 2 2 2 Hottest 90 | 90 78 78 46 46 46 60 Shots Fired 423 | 21 109 24 116 10 122 21 Gun 282 | 21 . . 116 8 117 20 Cannon 132 | . 108 23 . . . 1 Launcher 9 | . 1 1 . 2 5 . Special . | . . . . . . . Kinetic 392 | . 108 23 116 8 117 20 Thermal 14 | 14 . . . . . . Explosive 9 | . 1 1 . 2 5 . Electromagnetic 8 | 7 . . . . . 1 Robot Hit Streak 18 | 3 10 9 14 6 18 7 Robot Miss Streak 5 | 2 5 1 5 2 3 2 Penetration Max . | . . . . . . . Secondary Targets 4 | . . . 3 . 1 . Max Gunslinging Chain 1 | . . . 1 . 1 . Shots Hit Robots 278 | 13 51 18 78 7 95 16 Core Hits 120 | 6 30 8 39 6 20 11 Critical Kills . | . . . . . . . Critical Parts Destroyed . | . . . . . . . Critical Strikes 1 | 1 . . . . . . Burn 1 | 1 . . . . . . Melee Attacks 8 | . 2 . 6 . . . Impact 8 | . 2 . 6 . . . Slashing . | . . . . . . . Piercing . | . . . . . . . Sneak Attacks . | . . . . . . . Combat Hostiles . | . . . . . . . Follow-up Attacks . | . . . . . . . Damage Inflicted 5273 | 184 1324 458 1237 295 1487 288 Guns 2942 | 184 . . 1140 109 1345 164 Cannons 1610 | . 1206 396 . . . 8 Explosions 581 | . 94 43 . 186 142 116 Melee . | . . . . . . . Ramming 140 | . 24 19 97 . . . Kinetic 4360 | . 1206 396 1140 109 1345 164 Thermal 103 | 103 . . . . . . Explosive 465 | . 94 43 . 186 142 . Electromagnetic 205 | 81 . . . . . 124 Impact . | . . . . . . . Slashing . | . . . . . . . Piercing . | . . . . . . . Highest Corruption 3 | . . . . . . 3 Average Corruption 1 | . . . . . . 1 Corruption Purged . | . . . . . . . Corruption Blocked . | . . . . . . . Effects 1 | . . . . . . 1 Message Errors 1 | . . . . . . 1 Overload Shots . | . . . . . . . Overflow Damage 137 | . 59 25 . 28 25 . Projectiles 84 | . 59 25 . . . . Explosions 53 | . . . . 28 25 . Melee . | . . . . . . . Knockbacks 18 | . 13 5 . . . . Impact . | . . . . . . . Kinetic 17 | . 12 5 . . . . Secondary 1 | . 1 . . . . . Self-Inflicted Damage 60 | . . 32 . . . 28 Shots 2 | . . 1 . . . 1 Rammed 17 | . 6 3 8 . . . Targets Rammed 19 | . 6 4 9 . . . Kicked . | . . . . . . . Crushed 2 | . . 1 1 . . . Highest Temperature 241 | 130 241 117 5 . . 10 Average Temperature 62 | 59 69 52 3 . . 3 Received Heat Transfer 340 | . 101 65 126 . . 48 Siege Activations . | . . . . . . . Robots Corrupted . | . . . . . . . Combat Hostiles . | . . . . . . . Parts Fried . | . . . . . . . Impact Corruptions 1 | . 1 . . . . . Robots Melted . | . . . . . . . Combat Hostiles . | . . . . . . . Parts Melted 1 | 1 . . . . . . Heat Transferred 370 | 370 . . . . . . Parts Sabotaged . | . . . . . . . Parts Stolen . | . . . . . . . Parts Stripped . | . . . . . . . Power Chain Reactions . | . . . . . . . Missiles Intercepted . | . . . . . . . Latent Energy Used 67 | . . . . . . 67 LE Corruption 1 | . . . . . . 1 Alert | -11 -10 -10 -9 -9 -9 -8 ------- Run | Scr Mat Min Mat Min Exi Min Peak Influence 332 | 25 191 140 332 165 . 100 Initial 70 | . 16 11 53 70 . . Average 111 | 12 63 120 177 141 . 70 Maximum Alert Level 1 | . . . 1 . . . Low Security (%) 86 | 100 100 100 55 100 . 100 Level 1 13 | . . . 44 . . . Level 2 . | . . . . . . . Level 3 . | . . . . . . . Level 4 . | . . . . . . . Level 5 . | . . . . . . . High Security . | . . . . . . . Max Security . | . . . . . . . Squads Dispatched 5 | . 3 . 2 . . . Investigation 3 | . 2 . 1 . . . Extermination . | . . . . . . . Reinforcement 2 | . 1 . 1 . . . Assault . | . . . . . . . Garrison . | . . . . . . . Intercept . | . . . . . . . Searches Triggered . | . . . . . . . Construction Impeded . | . . . . . . . Haulers Reinforced . | . . . . . . . Active Scanning Responses . | . . . . . . . Cargo Convoy Interrupts . | . . . . . . . Stealth | -11 -10 -10 -9 -9 -9 -8 --------- Run | Scr Mat Min Mat Min Exi Min Distress Signals 2 | . 2 . . . . . Communications Jammed . | . . . . . . . Distress Signals . | . . . . . . . Times Spotted 92 | . 20 10 29 3 25 5 Peak Tracking Total 9 | . 4 7 5 3 9 4 Tactical Retreats 5 | . . 1 . . 4 . Traps | -11 -10 -10 -9 -9 -9 -8 ------- Run | Scr Mat Min Mat Min Exi Min Traps Triggered . | . . . . . . . Indirectly . | . . . . . . . Trap Hack Attempts . | . . . . . . . Triggered . | . . . . . . . Disarmed . | . . . . . . . Reprogrammed . | . . . . . . . Reused . | . . . . . . . Traps Extracted . | . . . . . . . Installed . | . . . . . . . Triggered . | . . . . . . . Exploded 3 | . . . . . 3 . Machines | -11 -10 -10 -9 -9 -9 -8 ---------- Run | Scr Mat Min Mat Min Exi Min Machines Disabled 6 | . . 2 1 . 3 . Max in Single Turn 2 | . . 2 1 . 1 . Machines Sabotaged . | . . . . . . . Garrisons Compromised . | . . . . . . . Overloaded Fab Kills . | . . . . . . . Hacking | -11 -10 -10 -9 -9 -9 -8 --------- Run | Scr Mat Min Mat Min Exi Min Machines Accessed 15 | . 7 . 6 . 2 . Terminals 10 | . 5 . 5 . . . Fabricators . | . . . . . . . Repair Stations 1 | . 1 . . . . . Recycling Units 2 | . 1 . 1 . . . Scanalyzers . | . . . . . . . Garrison Access . | . . . . . . . Total Hacks 43 | . 23 . 18 . 2 . Successful 20 | . 12 . 6 . 2 . Failed 23 | . 11 . 12 . . . Catastrophic 1 | . 1 . . . . . Database Lockouts . | . . . . . . . Manual 22 | . 13 . 8 . 1 . Terminals 35 | . 18 . 17 . . . Fabricators . | . . . . . . . Repair Stations 4 | . 4 . . . . . Recycling Units 2 | . 1 . 1 . . . Scanalyzers . | . . . . . . . Garrison Access . | . . . . . . . Terminal Hacks 12 | . 6 . 4 . 2 . Record 1 | . . . . . 1 . Robot Analysis 2 | . 2 . . . . . Unreport Threat 4 | . 2 . 2 . . . Locate Traps 2 | . 1 . 1 . . . Hauler Manifests 1 | . 1 . . . . . Zone Layout 1 | . . . 1 . . . EX-Prototype ID Bank 1 | . . . . . 1 . Fabricator Hacks . | . . . . . . . Repair Station Hacks 3 | . 3 . . . . . Scan Component 2 | . 2 . . . . . Repair 1 | . 1 . . . . . Recycling Unit Hacks . | . . . . . . . Scanalyzer . | . . . . . . . Garrison Access Hacks . | . . . . . . . Unauthorized Hacks 5 | . 3 . 2 . . . Terminals 3 | . 2 . 1 . . . Track 1 | . 1 . . . . . Operators 2 | . 1 . 1 . . . Fabricators . | . . . . . . . Repair Stations . | . . . . . . . Recycling Units 2 | . 1 . 1 . . . Tunnel 2 | . 1 . 1 . . . Scanalyzers . | . . . . . . . Garrison Access . | . . . . . . . Data Cores Recovered 1 | . 1 . . . . . Used . | . . . . . . . Hacking Detections 11 | . 6 . 5 . . . Full Trace Events 1 | . 1 . . . . . Feedback Events . | . . . . . . . Feedback Blocked . | . . . . . . . Robot Schematics Acquired . | . . . . . . . Robots Built . | . . . . . . . Authchips . | . . . . . . . Time . | . . . . . . . Total Robot Build Rating . | . . . . . . . Part Schematics Acquired . | . . . . . . . Parts Built . | . . . . . . . Authchips . | . . . . . . . Time . | . . . . . . . Total Part Build Rating . | . . . . . . . Parts Repaired 1 | . 1 . . . . . Time 36 | . 36 . . . . . Parts Recycled . | . . . . . . . Recycled Matter . | . . . . . . . Retrieved Matter . | . . . . . . . Retrieved Components . | . . . . . . . Parts Scanalyzed . | . . . . . . . Part Schematics Acquired . | . . . . . . . Parts Damaged . | . . . . . . . Bothacking | -11 -10 -10 -9 -9 -9 -8 ------------ Run | Scr Mat Min Mat Min Exi Min Used RIF Installer . | . . . . . . . Robots Hacked . | . . . . . . . Non-combat . | . . . . . . . Combat . | . . . . . . . Robot Hacks Applied . | . . . . . . . Relay Couplers Released . | . . . . . . . Fabnet Peak Effective % . | . . . . . . . Robots Rewired . | . . . . . . . Allies Hacked . | . . . . . . . Hacks Repelled . | . . . . . . . Allies | -11 -10 -10 -9 -9 -9 -8 -------- Run | Scr Mat Min Mat Min Exi Min Total Allies . | . . . . . . . Largest Group . | . . . . . . . Highest-Rated Group . | . . . . . . . Highest-Rated Ally . | . . . . . . . Total Orders . | . . . . . . . Ally Attacks . | . . . . . . . Total Damage . | . . . . . . . Kills . | . . . . . . . Allies Corrupted . | . . . . . . . Allies Melted . | . . . . . . . Intel | -11 -10 -10 -9 -9 -9 -8 ------- Run | Scr Mat Min Mat Min Exi Min Robot Analysis Total 2 | . 2 . . . . . Derelict Logs Recovered 2 | . . 1 . 1 . . Drone Launches . | . . . . . . . Drone Recoveries . | . . . . . . . Exploration | -11 -10 -10 -9 -9 -9 -8 ------------- Run | Scr Mat Min Mat Min Exi Min Turns Passed 5234 | 98 1452 602 1124 154 1653 151 Spaces Moved 2314 | 22 537 225 527 82 853 68 Core 3 | . . . . . . 3 Treads 2311 | 22 537 225 527 82 853 65 Legs . | . . . . . . . Wheels . | . . . . . . . Hover . | . . . . . . . Flight . | . . . . . . . Fastest Speed 50 | 160 160 240 160 160 160 50 Average Speed 181 | 160 218 240 160 160 160 156 Slowest Speed 240 | 160 240 240 160 160 160 240 Overloaded Moves . | . . . . . . . Propulsion Burnouts . | . . . . . . . Robots Hopped . | . . . . . . . Cave-ins Triggered . | . . . . . . . Exploration Rate (%) 46 | 3 95 63 54 25 70 13 Regions Visited 6 Branch Regions 4 Pre-discovered Areas 3 | . 1 . 1 . 1 . Known Exits Taken . | . . . . . . . Unknown Exits Taken 6 | 1 1 1 1 1 1 . Scrap Searched 1 | . . . . . . 1 Spaces Dug 19 | . 2 12 5 . . . Terrain Destroyed 89 | . 19 32 5 10 23 . Melee 6 | . 1 . 5 . . . Projectile 8 | . 8 . . . . . AOE 75 | . 10 32 . 10 23 . Terrain Rammed . | . . . . . . . Walls Destroyed . | . . . . . . . Machines Disabled . | . . . . . . . Actions | -11 -10 -10 -9 -9 -9 -8 --------- Run | Scr Mat Min Mat Min Exi Min Total 2921 | 63 695 256 690 93 1030 94 Wait 159 | 21 44 8 35 1 46 4 Move 2309 | 21 536 225 526 81 852 68 Hop . | . . . . . . . Pick Up 70 | . 25 . 16 1 26 2 Fast Attach 13 | 2 3 1 6 . . 1 Attach 24 | . 4 1 3 1 13 2 Detach 3 | . . . 2 . . 1 Swap 30 | 2 8 4 8 3 3 2 Drop 65 | 3 12 1 21 . 25 3 Fire 222 | 14 55 13 58 6 65 11 Melee 8 | . 2 . 6 . . . Ram . | . . . . . . . Kick . | . . . . . . . Crush 18 | . 6 3 9 . . . Escape Stasis . | . . . . . . . Rewire . | . . . . . . . Trap . | . . . . . . . Miscellaneous . | . . . . . . . Route ------- -11/Scrapyard -10/Materials (discovered 5 exits: *Mat x3 / [*Min x2]) -10/Mines (discovered 2 exits: *Mat x2) -9/Materials (discovered 4 exits: [*Mat] / [*Min x2] / *Sto) -9/Mines (discovered 2 exits: [*Mat] / *Exi) -9/Exiles -8/Mines History --------- Turn | Location | Event 14 | -11/Scrapyard | Discovered new exit (range 3) 99 | -11/Scrapyard | Entered Materials 177 | -10/Materials | Discovered new exit (range 5) 297 | -10/Materials | Discovered new exit (range 10) 301 | -10/Materials | Build established: Mutant 593 | -10/Materials | Discovered new exit (range 8) 745 | -10/Materials | Discovered new exit (range 10) 1072 | -10/Materials | Repaired Broken Lgt. Treads? 1362 | -10/Materials | Discovered new exit (range 5) 1551 | -10/Materials | Entered Mines 1690 | -10/Mines | Discovered new exit (range 15) 2098 | -10/Mines | Discovered new exit (range 5) 2129 | -10/Mines | Assembled infested the area 2153 | -10/Mines | Entered Materials 2153 | -9/Materials | Evolved 2 slots: Propulsion x1, Utility x1 2154 | -9/Materials | Identified exit to Storage 2327 | -9/Materials | Discovered new exit (range 6) 2554 | -9/Materials | Build established: Scavenger-Mutant 2731 | -9/Materials | Discovered new exit (range 12) 3121 | -9/Materials | Discovered new exit (range 7) 3277 | -9/Materials | Entered Mines 3282 | -9/Mines | Discovered new exit (range 6) 3292 | -9/Mines | Met a Derelict bent on vengeance 3301 | -9/Mines | Learned Materials terminal intel 3377 | -9/Mines | Found a damaged Exp. Sensor Array with a note attached 3380 | -9/Mines | Found Prototype Device 3424 | -9/Mines | Deemed a non-threat by the Exiles lab entrance 3424 | -9/Mines | Discovered new exit (range 5) 3431 | -9/Mines | Entered Exiles 3471 | -9/Exiles | Met 8R-AWN 3499 | -9/Exiles | Met EX-HEX 3556 | -9/Exiles | Met EX-DEC 3590 | -9/Exiles | Learned location of Zion (-7) 3631 | -9/Exiles | Met EX-BIN 3788 | -9/Exiles | Discovered new exit (range 14) 3978 | -9/Exiles | Aligned with FarCom system 3980 | -9/Exiles | Given EX-Vault access code 4017 | -9/Exiles | Opened EX-Vault 4028 | -9/Exiles | Found Latent Energy Streamer 4034 | -9/Exiles | Found Longsword +1 4068 | -9/Exiles | Warned to stay clear of 0b10 Research branches 4552 | -9/Exiles | Attacked by the Exiles 4728 | -9/Exiles | Lost 6 parts (4n1u1w) 4748 | -9/Exiles | Core integrity fell below 50% 4798 | -9/Exiles | Destroyed 8R-AWN 5084 | -9/Exiles | Stole two prototypes: Latent Energy Streamer, Longsword +1 5084 | -9/Exiles | Entered Mines 5208 | -8/Mines | P1-3CE came to Exiles' defense 5226 | -8/Mines | Core integrity fell below 20% 5235 | -8/Mines | Destroyed by P1-3CE with P1-3CE's Gatling Flakker Last Messages --------------- 05180_ Penetrated by Slug. 05185_ H-55 Commando destroyed. 05191_ Acquired 16 matter. 05208_ P1-3CE: "I came as fast as I could... Wait, it was you!" 05220_ R-06 Scavenger knocked back. 05220_ R-06 Scavenger destroyed. 05224_ Shield Generator destroyed. 05225_ Lgt. Treads destroyed. 05225_ Lgt. Assault Rifle destroyed. 05225_ Lgt. Treads destroyed. 05227_ Knocked back. 05229_ Integrated Corrupted Lgt. Treads (+2). 05229_ Complication: Core Shielding rejected. 05229_ Complication: Hvy. Assault Rifle rejected. 05230_ Acquired Core Shielding. 05232_ Dropped Hcp. Storage Unit. 05232_ Dropped Lgt. Assault Rifle. 05233_ Dropped Cld. Ion Engine. 05233_ T-07 Excavator knocked back. 05233_ T-07 Excavator destroyed. Map ----- +----------------------------------------------------+ | | | | | | | | | | | | | | | | | | | | | | | | | ?????????????????????????????????????????????????? | | ????????????????????????????#####????????????????? | | ???????????????????######### #????????????????? | | ??????????????????## #????????????????? | | ??????????????????# #?????????????????? | | ??????????????????# =%= #???????????????????? | | ??????????????????## %!/% #???????????????????? | | ???????????????????## ## ##??????????????????? | | ????????????????????#???## ##?????????????????? | | ?????????????????????????## #?????????????????? | | ??????????????????????????## #?????????????????? | | ????????????????????????#### #?????????????????? | | ????????????????????????#/[ #?????????????????? | | ????????????????????????#@# #?????????????????? | | ????????????????????????#!## ##?????????????????? | | ????????????????????????#[#####??????????????????? | | ????????????????????????#!#??????????????????????? | | ????????????????????????#[#??????????????????????? | | ????????????????????????#!#??????????????????????? | | ????????????????????????#]#??????????????????????? | | ????????????????????????#!#??????????????????????? | | ????????????????????????#*######## #?????????????? | | ????????????????????????# ! #???????????? | | ????????????????????????#M*###### #??????????? | | ????????????????????????#/"####??????????????????? | | ?????????????##?????????#= ! #??????????????????? | | ?????????????# ######!### #??????????????????? | | ????????????# *### ####???????????????? | | ????????????# ##"## #???????????????? | | ????????????## ???#??# #???????????????? | | ?????????????# ????????# """ #???????????????? | | ????????????# ??????????# """ #???????????????? | | ????????????????????????# """ #???????????????? | | ????????????????????????# #???????????????? | | ????????????????????????##########???????????????? | | ?????????????????????????????????????????????????? | | ?????????????????????????????????????????????????? | | ?????????????????????????????????????????????????? | +----------------------------------------------------+ Best States ------------- Heat Dissipation 47 Energy Generation 23 Energy Capacity 280 Matter Stores 300 Matter Capacity 300 Sight Range 16 Terrain Scan Density 10 Armor Coverage 150 Core Shielding 20 Evasion (%) 40 Recoil Reduction 3 Item Schematics ----------------- None Robot Schematics ------------------ None Fabricated ------------ Nothing Alien Tech Used ----------------- None Achievements -------------- None Challenges ------------ None Game ------ Seed AlloyCatalystJammer Manual? 0 Play Time 00:43:18 Cumulative 1176.4 hours Start 2022.03.15 @ 01:37:52 End 2022.03.15 @ 02:23:28 Sessions 1 Manual Loads 0 Difficulty Rogue Special Mode None Game No. 373 Rogue 373 Adventurer 0 Explorer 0 Win Type - Total 67 Types 13/18/12/3/1/2/15/2/1 Lore% 95 Gallery% 95 Achievement% 87 Wizard Run 0 Options --------- ASCII 0 Keyboard 0 Movement Numpad Keybinds 0 Fullscreen 2 Font 24/Smallcaps Map View 76x50 Tactical HUD 1 Map Filters NONE Filters NONE Steam 1 RUN: b23daae1-dc1e-4d5d-ac30-5cf4172572c9